[Event "*** Titled Tuesday Blitz"]
[Site "Chess.com"]
[Date "2020.11.10"]
[Round "3"]
[White "joppie2"]
[Black "ftorodent"]
[Result "1-0"]
[WhiteElo "2961"]
[BlackElo "2698"]
[TimeControl "180+1"]
[EndTime "10:29:16 PST"]
[Termination "joppie2 won by resignation"]

1. e4 {[%clk 0:03:00.9]} 1... e6 {[%clk 0:02:59.7]} 2. d4 {[%clk 0:03:00.5]}
2... d5 {[%clk 0:02:59.8]} 3. Nc3 {[%clk 0:03:01]} 3... Nf6 {[%clk 0:02:59.8]}
4. e5 {[%clk 0:03:01.1]} 4... Nfd7 {[%clk 0:02:59.9]} 5. f4 {[%clk 0:03:01]}
5... c5 {[%clk 0:02:59.9]} 6. Nf3 {[%clk 0:03:01.1]} 6... Nc6 {[%clk 0:03:00]}
7. Be3 {[%clk 0:03:01.7]} 7... cxd4 {[%clk 0:03:00]} 8. Nxd4 {[%clk 0:03:02.6]}
8... Bc5 {[%clk 0:03:00.1]} 9. Qd2 {[%clk 0:03:02.6]} 9... a6 {[%clk 0:03:00.3]}
10. Be2 {[%clk 0:03:01.1]} 10... O-O {[%clk 0:02:58.4]} 11. O-O {[%clk
0:03:01.1]} 11... Qe7 {[%clk 0:02:53.7]} 12. Kh1 {[%clk 0:02:50.6]} 12... f5
{[%clk 0:02:45.9]} 13. Rg1 {[%clk 0:02:39]} 13... Nxd4 {[%clk 0:02:33.2]} 14.
Bxd4 {[%clk 0:02:38.6]} 14... Bxd4 {[%clk 0:02:33.3]} 15. Qxd4 {[%clk
0:02:39.1]} 15... Qc5 {[%clk 0:02:32.9]} 16. Qd2 {[%clk 0:02:38.1]} 16... b5
{[%clk 0:02:20.9]} 17. Bf3 {[%clk 0:02:38]} 17... Bb7 {[%clk 0:02:13.3]} 18. Ne2
{[%clk 0:02:35.1]} 18... Nb6 {[%clk 0:02:08.6]} 19. Nd4 {[%clk 0:02:34.9]} 19...
Nc4 {[%clk 0:01:59.4]} 20. Qf2 {[%clk 0:02:31.3]} 20... Nxb2 {[%clk 0:01:44.9]}
21. g4 {[%clk 0:02:30.9]} 21... fxg4 {[%clk 0:01:31.4]} 22. Rxg4 {[%clk
0:02:31]} 22... Rf7 {[%clk 0:01:30.9]} 23. Rag1 {[%clk 0:02:28.9]} 23... Qe7
{[%clk 0:01:25.3]} 24. Qg3 {[%clk 0:02:14.6]} 24... Kh8 {[%clk 0:01:19.2]} 25.
Nxe6 {[%clk 0:01:32.3]} 25... g6 {[%clk 0:01:18.8]} 26. Ng5 {[%clk 0:01:29.7]}
26... Rg7 {[%clk 0:01:10.7]} 27. f5 {[%clk 0:01:29.7]} 27... gxf5 {[%clk
0:01:05.9]} 28. Nf7+ {[%clk 0:01:28.2]} 1-0

[Event "*** Titled Tuesday Blitz"]
[Site "Chess.com"]
[Date "2020.11.10"]
[Round "3"]
[White "pedro_nascimento85"]
[Black "Marcin"]
[Result "0-1"]
[WhiteElo "2003"]
[BlackElo "2475"]
[TimeControl "180+1"]
[EndTime "10:29:26 PST"]
[Termination "Marcin won by checkmate"]

1. d4 {[%clk 0:03:00.9]} 1... Nf6 {[%clk 0:02:59.1]} 2. c4 {[%clk 0:02:59.5]}
2... g6 {[%clk 0:02:59.3]} 3. Nc3 {[%clk 0:02:51.4]} 3... Bg7 {[%clk 0:02:59.3]}
4. e4 {[%clk 0:02:50.8]} 4... d6 {[%clk 0:02:59.5]} 5. Be2 {[%clk 0:02:50.6]}
5... O-O {[%clk 0:03:00]} 6. Nf3 {[%clk 0:02:50.4]} 6... e5 {[%clk 0:02:59.7]}
7. d5 {[%clk 0:02:48.6]} 7... a5 {[%clk 0:02:59.2]} 8. Bg5 {[%clk 0:02:47.5]}
8... Na6 {[%clk 0:02:58.8]} 9. Nd2 {[%clk 0:02:45.7]} 9... Qe8 {[%clk
0:02:58.7]} 10. O-O {[%clk 0:02:45.2]} 10... Nd7 {[%clk 0:02:56.4]} 11. Be3
{[%clk 0:02:40.1]} 11... f5 {[%clk 0:02:56.5]} 12. f3 {[%clk 0:02:39.9]} 12...
f4 {[%clk 0:02:55.8]} 13. Bf2 {[%clk 0:02:38.9]} 13... g5 {[%clk 0:02:56.4]} 14.
a3 {[%clk 0:02:36.1]} 14... Nf6 {[%clk 0:02:41.9]} 15. Rb1 {[%clk 0:02:33.4]}
15... Rf7 {[%clk 0:02:36.2]} 16. b4 {[%clk 0:02:32.4]} 16... Bf8 {[%clk
0:02:31.4]} 17. c5 {[%clk 0:02:27.6]} 17... dxc5 {[%clk 0:02:24.3]} 18. Bxa6
{[%clk 0:02:27.2]} 18... Rxa6 {[%clk 0:02:22.2]} 19. bxc5 {[%clk 0:02:26.7]}
19... g4 {[%clk 0:02:07.2]} 20. Nc4 {[%clk 0:02:17.6]} 20... Rg7 {[%clk
0:02:02.1]} 21. Kh1 {[%clk 0:02:14.2]} 21... g3 {[%clk 0:01:51.6]} 22. Bg1
{[%clk 0:02:14.3]} 22... gxh2 {[%clk 0:01:51.9]} 23. Bxh2 {[%clk 0:02:13]} 23...
Bxc5 {[%clk 0:01:49.9]} 24. d6 {[%clk 0:01:50.8]} 24... cxd6 {[%clk 0:01:47.7]}
25. Nd5 {[%clk 0:01:49]} 25... Nxd5 {[%clk 0:01:45.2]} 26. Qxd5+ {[%clk
0:01:47.8]} 26... Be6 {[%clk 0:01:45.5]} 27. Qd3 {[%clk 0:01:47.4]} 27... Qh5
{[%clk 0:01:41]} 28. Rb5 {[%clk 0:01:19.1]} 28... Bd4 {[%clk 0:01:19.6]} 29.
Rxa5 {[%clk 0:01:13.3]} 29... Rg6 {[%clk 0:01:16.8]} 30. Rxa6 {[%clk 0:01:08.2]}
30... Qxh2+ {[%clk 0:01:16.2]} 31. Kxh2 {[%clk 0:01:07.4]} 31... Rh6# {[%clk
0:01:17.1]} 0-1

[Event "*** Titled Tuesday Blitz"]
[Site "Chess.com"]
[Date "2020.11.10"]
[Round "3"]
[White "BocharovD"]
[Black "KarstenHansch"]
[Result "1-0"]
[WhiteElo "2760"]
[BlackElo "2528"]
[TimeControl "180+1"]
[EndTime "10:29:37 PST"]
[Termination "BocharovD won by resignation"]

1. d4 {[%clk 0:03:00.9]} 1... d5 {[%clk 0:02:59.9]} 2. c4 {[%clk 0:03:00.3]}
2... e6 {[%clk 0:03:00.2]} 3. Nf3 {[%clk 0:03:00.7]} 3... Nf6 {[%clk 0:03:00.2]}
4. g3 {[%clk 0:03:01.3]} 4... Be7 {[%clk 0:03:00.4]} 5. Bg2 {[%clk 0:03:00.3]}
5... O-O {[%clk 0:03:00.6]} 6. Nc3 {[%clk 0:02:59.8]} 6... dxc4 {[%clk
0:02:59.6]} 7. Ne5 {[%clk 0:02:59.6]} 7... Nc6 {[%clk 0:02:53.8]} 8. Bxc6 {[%clk
0:02:57.9]} 8... bxc6 {[%clk 0:02:54.7]} 9. Nxc6 {[%clk 0:02:57.6]} 9... Qe8
{[%clk 0:02:51.2]} 10. Nxe7+ {[%clk 0:02:56.3]} 10... Qxe7 {[%clk 0:02:52.1]}
11. O-O {[%clk 0:02:55.9]} 11... e5 {[%clk 0:02:47]} 12. dxe5 {[%clk 0:02:55]}
12... Qxe5 {[%clk 0:02:46.6]} 13. Bf4 {[%clk 0:02:54.2]} 13... Qc5 {[%clk
0:02:46.2]} 14. Qd2 {[%clk 0:02:48.7]} 14... Bh3 {[%clk 0:02:44.8]} 15. Rfd1
{[%clk 0:02:47.6]} 15... Rfe8 {[%clk 0:02:40.9]} 16. Qd4 {[%clk 0:02:42.4]}
16... Qh5 {[%clk 0:02:31.4]} 17. f3 {[%clk 0:02:38.5]} 17... Rab8 {[%clk
0:02:10.9]} 18. Rd2 {[%clk 0:02:36.6]} 18... Be6 {[%clk 0:01:56.1]} 19. Rad1
{[%clk 0:02:33.8]} 19... c5 {[%clk 0:01:48.6]} 20. Qe5 {[%clk 0:02:31.6]} 20...
Qxe5 {[%clk 0:01:33.8]} 21. Bxe5 {[%clk 0:02:31]} 21... Rb7 {[%clk 0:01:33.5]}
22. Rd8 {[%clk 0:02:21.8]} 22... Kf8 {[%clk 0:01:16.4]} 23. Bd6+ {[%clk
0:02:17.1]} 23... Kg8 {[%clk 0:01:16.5]} 24. Bxc5 {[%clk 0:02:16.6]} 24... h6
{[%clk 0:01:13.6]} 25. Rxe8+ {[%clk 0:02:07.1]} 25... Nxe8 {[%clk 0:01:14.5]}
26. Rd8 {[%clk 0:02:06.6]} 26... Bd7 {[%clk 0:01:14.6]} 27. Ne4 {[%clk
0:02:02.9]} 27... f6 {[%clk 0:01:12.3]} 28. Bd4 {[%clk 0:01:56.8]} 28... Bc6
{[%clk 0:00:51.3]} 29. Nd6 {[%clk 0:01:47.8]} 29... Re7 {[%clk 0:00:46.1]} 30.
Kf2 {[%clk 0:01:36.9]} 30... Kf8 {[%clk 0:00:45.2]} 31. Nxe8 {[%clk 0:01:35.8]}
31... Bxe8 {[%clk 0:00:44.6]} 32. Bc5 {[%clk 0:01:35.5]} 1-0

[Event "*** Titled Tuesday Blitz"]
[Site "Chess.com"]
[Date "2020.11.10"]
[Round "3"]
[White "Agnes66678"]
[Black "maximnovik"]
[Result "1-0"]
[WhiteElo "2351"]
[BlackElo "2526"]
[TimeControl "180+1"]
[EndTime "10:29:38 PST"]
[Termination "Agnes66678 won by resignation"]

1. Nf3 {[%clk 0:03:00.9]} 1... Nf6 {[%clk 0:01:30.8]} 2. g3 {[%clk 0:03:01.8]}
2... g6 {[%clk 0:01:30.5]} 3. Bg2 {[%clk 0:03:01.3]} 3... Bg7 {[%clk 0:01:31.4]}
4. O-O {[%clk 0:03:01.9]} 4... O-O {[%clk 0:01:32.3]} 5. c4 {[%clk 0:03:00.8]}
5... d5 {[%clk 0:01:33.2]} 6. cxd5 {[%clk 0:03:00.3]} 6... Nxd5 {[%clk 0:01:32]}
7. d4 {[%clk 0:03:00.4]} 7... Nc6 {[%clk 0:01:31.3]} 8. Nc3 {[%clk 0:02:59.8]}
8... e5 {[%clk 0:01:31.7]} 9. Nxd5 {[%clk 0:02:44.2]} 9... e4 {[%clk 0:01:32.1]}
10. Ne5 {[%clk 0:02:37.1]} 10... Qxd5 {[%clk 0:01:30.8]} 11. Nxc6 {[%clk
0:02:34.9]} 11... Qxc6 {[%clk 0:01:30.5]} 12. e3 {[%clk 0:02:35.1]} 12... Be6
{[%clk 0:01:29]} 13. b3 {[%clk 0:02:32.9]} 13... Bd5 {[%clk 0:01:28.3]} 14. Bb2
{[%clk 0:02:32.8]} 14... Qd7 {[%clk 0:01:28.5]} 15. Rc1 {[%clk 0:02:32.1]} 15...
c6 {[%clk 0:01:28.3]} 16. f3 {[%clk 0:02:30]} 16... f5 {[%clk 0:01:28.7]} 17. f4
{[%clk 0:02:25.5]} 17... Bf6 {[%clk 0:01:25.5]} 18. Qd2 {[%clk 0:02:25.3]} 18...
g5 {[%clk 0:01:23.9]} 19. Rf2 {[%clk 0:02:21.7]} 19... Kh8 {[%clk 0:01:24.1]}
20. Bf1 {[%clk 0:02:20]} 20... Rg8 {[%clk 0:01:23.1]} 21. fxg5 {[%clk
0:02:17.5]} 21... Rxg5 {[%clk 0:01:16.4]} 22. Bh3 {[%clk 0:02:17.5]} 22... Rag8
{[%clk 0:01:15.1]} 23. Rcf1 {[%clk 0:02:16.1]} 23... Be6 {[%clk 0:00:46.2]} 24.
d5 {[%clk 0:02:14.1]} 24... Bxb2 {[%clk 0:00:31.2]} 25. Qxb2+ {[%clk 0:02:15]}
25... R8g7 {[%clk 0:00:30.3]} 26. dxe6 {[%clk 0:02:14.5]} 26... Qxe6 {[%clk
0:00:30.8]} 27. Bxf5 {[%clk 0:02:09.4]} 27... Qh6 {[%clk 0:00:26.8]} 28. Bxe4
{[%clk 0:02:05.3]} 28... Rxg3+ {[%clk 0:00:23]} 29. hxg3 {[%clk 0:02:04.1]}
29... Qxe3 {[%clk 0:00:23.6]} 30. Bg2 {[%clk 0:01:59.5]} 30... Kg8 {[%clk
0:00:21.7]} 31. Qe2 {[%clk 0:01:56.3]} 1-0

[Event "*** Titled Tuesday Blitz"]
[Site "Chess.com"]
[Date "2020.11.10"]
[Round "3"]
[White "Chessdude1987"]
[Black "m_ezat"]
[Result "0-1"]
[WhiteElo "2289"]
[BlackElo "2493"]
[TimeControl "180+1"]
[EndTime "10:29:52 PST"]
[Termination "m_ezat won by resignation"]

1. e4 {[%clk 0:03:00.9]} 1... e5 {[%clk 0:02:57.7]} 2. f4 {[%clk 0:03:00.3]}
2... exf4 {[%clk 0:02:55.5]} 3. Bc4 {[%clk 0:03:00.2]} 3... d5 {[%clk
0:02:52.6]} 4. Bxd5 {[%clk 0:02:51]} 4... Nf6 {[%clk 0:02:39.2]} 5. Nf3 {[%clk
0:02:49.9]} 5... Nxd5 {[%clk 0:02:34.9]} 6. exd5 {[%clk 0:02:49.7]} 6... Qxd5
{[%clk 0:02:34.9]} 7. Nc3 {[%clk 0:02:37.6]} 7... Qh5 {[%clk 0:02:30.6]} 8. O-O
{[%clk 0:02:32.3]} 8... Bd6 {[%clk 0:02:29.9]} 9. d4 {[%clk 0:02:04.6]} 9... O-O
{[%clk 0:02:17.2]} 10. Ne4 {[%clk 0:02:01.9]} 10... Qd5 {[%clk 0:02:09.5]} 11.
Nxd6 {[%clk 0:01:56.4]} 11... Qxd6 {[%clk 0:02:09.3]} 12. Ne5 {[%clk 0:01:54.1]}
12... Nc6 {[%clk 0:02:09.1]} 13. Bxf4 {[%clk 0:01:36.5]} 13... Qxd4+ {[%clk
0:02:05.6]} 14. Kh1 {[%clk 0:01:30.4]} 14... Qc5 {[%clk 0:01:54.2]} 15. Nd3
{[%clk 0:01:21.6]} 15... Qb6 {[%clk 0:01:29.2]} 16. Qh5 {[%clk 0:01:18.8]} 16...
Be6 {[%clk 0:01:25.6]} 17. Rae1 {[%clk 0:01:13.2]} 17... Rae8 {[%clk 0:01:13.3]}
18. Be3 {[%clk 0:01:12.4]} 18... Qa5 {[%clk 0:01:07]} 19. Bc5 {[%clk 0:01:11.4]}
19... b6 {[%clk 0:00:59]} 20. b4 {[%clk 0:01:10.8]} 20... Nxb4 {[%clk
0:00:53.7]} 21. Nxb4 {[%clk 0:01:07.9]} 21... Qxc5 {[%clk 0:00:51.5]} 22. Qxc5
{[%clk 0:01:04]} 22... bxc5 {[%clk 0:00:51.6]} 23. Na6 {[%clk 0:01:03.8]} 23...
Bc4 {[%clk 0:00:51.6]} 24. Rg1 {[%clk 0:01:02.5]} 24... Bxa6 {[%clk 0:00:51.2]}
0-1

[Event "*** Titled Tuesday Blitz"]
[Site "Chess.com"]
[Date "2020.11.10"]
[Round "3"]
[White "rugbyclub"]
[Black "Chessalary"]
[Result "0-1"]
[WhiteElo "2221"]
[BlackElo "2437"]
[TimeControl "180+1"]
[EndTime "10:29:53 PST"]
[Termination "Chessalary won by resignation"]

1. d4 {[%clk 0:03:00.9]} 1... d5 {[%clk 0:03:00]} 2. Bf4 {[%clk 0:02:59.2]} 2...
Nf6 {[%clk 0:02:59.9]} 3. e3 {[%clk 0:02:59]} 3... c5 {[%clk 0:03:00.5]} 4. c3
{[%clk 0:02:58.9]} 4... Nc6 {[%clk 0:03:01.1]} 5. Nd2 {[%clk 0:02:57.8]} 5... e6
{[%clk 0:03:00.2]} 6. Bd3 {[%clk 0:02:57.3]} 6... Be7 {[%clk 0:03:00.2]} 7. Ngf3
{[%clk 0:02:56.6]} 7... O-O {[%clk 0:03:00.1]} 8. h4 {[%clk 0:02:55]} 8... cxd4
{[%clk 0:02:57.7]} 9. exd4 {[%clk 0:02:53.5]} 9... Bd6 {[%clk 0:02:57.8]} 10.
Ne5 {[%clk 0:02:53.2]} 10... Qc7 {[%clk 0:02:50.5]} 11. Ndf3 {[%clk 0:02:42]}
11... h6 {[%clk 0:02:13.2]} 12. Qd2 {[%clk 0:02:10.7]} 12... Ng4 {[%clk
0:02:02.4]} 13. Qe2 {[%clk 0:01:59.8]} 13... f6 {[%clk 0:01:26.8]} 14. Nxg4
{[%clk 0:01:51.6]} 14... Bxf4 {[%clk 0:01:26.2]} 15. g3 {[%clk 0:01:52]} 15...
e5 {[%clk 0:01:16.3]} 16. gxf4 {[%clk 0:01:50.2]} 16... e4 {[%clk 0:01:16.3]}
17. Ne3 {[%clk 0:01:19.6]} 17... exd3 {[%clk 0:00:45.1]} 18. Qxd3 {[%clk
0:01:11.2]} 18... Re8 {[%clk 0:00:44.9]} 19. O-O-O {[%clk 0:01:07.4]} 19... Qxf4
{[%clk 0:00:36.8]} 20. Kb1 {[%clk 0:01:01]} 20... Qxf3 {[%clk 0:00:35.9]} 0-1

[Event "*** Titled Tuesday Blitz"]
[Site "Chess.com"]
[Date "2020.11.10"]
[Round "3"]
[White "Chuchofrio1"]
[Black "Chamal_Gedgafov"]
[Result "0-1"]
[WhiteElo "2322"]
[BlackElo "2159"]
[TimeControl "180+1"]
[EndTime "10:29:54 PST"]
[Termination "Chamal_Gedgafov won by resignation"]

1. d4 {[%clk 0:03:00.9]} 1... e6 {[%clk 0:02:58.7]} 2. c4 {[%clk 0:03:00.9]}
2... Nf6 {[%clk 0:02:58]} 3. Nc3 {[%clk 0:03:00.8]} 3... Bb4 {[%clk 0:02:58.3]}
4. e3 {[%clk 0:02:59.9]} 4... O-O {[%clk 0:02:56.7]} 5. Ne2 {[%clk 0:02:59.7]}
5... b6 {[%clk 0:02:56.6]} 6. a3 {[%clk 0:02:59.4]} 6... Be7 {[%clk 0:02:56.9]}
7. Nf4 {[%clk 0:02:56.6]} 7... Bb7 {[%clk 0:02:56.9]} 8. Bd3 {[%clk 0:02:52.1]}
8... d5 {[%clk 0:02:56.6]} 9. cxd5 {[%clk 0:02:51.9]} 9... exd5 {[%clk
0:02:56.1]} 10. O-O {[%clk 0:02:50.8]} 10... Re8 {[%clk 0:02:52.7]} 11. b4
{[%clk 0:02:43.9]} 11... a6 {[%clk 0:02:52.5]} 12. Nh5 {[%clk 0:02:27.5]} 12...
Nbd7 {[%clk 0:02:44.4]} 13. Qf3 {[%clk 0:02:19.7]} 13... Nxh5 {[%clk 0:02:41.3]}
14. Qxh5 {[%clk 0:02:19.4]} 14... Nf6 {[%clk 0:02:40.9]} 15. Qh3 {[%clk
0:02:19.3]} 15... Ne4 {[%clk 0:02:37]} 16. f3 {[%clk 0:02:12.5]} 16... Nf6
{[%clk 0:02:30.5]} 17. Bd2 {[%clk 0:02:10.8]} 17... g6 {[%clk 0:02:13.7]} 18.
Ne2 {[%clk 0:02:09.2]} 18... Bd6 {[%clk 0:02:10.8]} 19. Ng3 {[%clk 0:02:04.6]}
19... Qe7 {[%clk 0:01:44.5]} 20. Rae1 {[%clk 0:01:59.7]} 20... Rad8 {[%clk
0:01:42.9]} 21. Bb1 {[%clk 0:01:43.1]} 21... h5 {[%clk 0:01:12.8]} 22. e4 {[%clk
0:01:32]} 22... dxe4 {[%clk 0:01:11.6]} 23. Nxe4 {[%clk 0:01:23.8]} 23... Nh7
{[%clk 0:00:48.2]} 24. Ng5 {[%clk 0:01:09.9]} 24... Nxg5 {[%clk 0:00:44.8]} 25.
Qh4 {[%clk 0:01:02.7]} 25... Nxf3+ {[%clk 0:00:41.6]} 0-1

[Event "*** Titled Tuesday Blitz"]
[Site "Chess.com"]
[Date "2020.11.10"]
[Round "3"]
[White "Paralinch"]
[Black "Sergey85Rodchenkov"]
[Result "1-0"]
[WhiteElo "2817"]
[BlackElo "2455"]
[TimeControl "180+1"]
[EndTime "10:29:58 PST"]
[Termination "Paralinch won by resignation"]

1. e4 {[%clk 0:03:00.9]} 1... c5 {[%clk 0:02:59.3]} 2. Nf3 {[%clk 0:03:01.3]}
2... d6 {[%clk 0:02:59.4]} 3. d4 {[%clk 0:03:01.9]} 3... cxd4 {[%clk 0:02:59.6]}
4. Nxd4 {[%clk 0:03:02.8]} 4... Nf6 {[%clk 0:03:00]} 5. Nc3 {[%clk 0:03:03.4]}
5... a6 {[%clk 0:03:00.2]} 6. Be3 {[%clk 0:03:03.7]} 6... e5 {[%clk 0:02:59.6]}
7. Nf3 {[%clk 0:03:03.8]} 7... Be7 {[%clk 0:02:58.4]} 8. Bc4 {[%clk 0:03:04.3]}
8... Be6 {[%clk 0:02:57.5]} 9. Bb3 {[%clk 0:03:03.6]} 9... O-O {[%clk
0:02:53.3]} 10. O-O {[%clk 0:03:04.1]} 10... b5 {[%clk 0:02:47.9]} 11. Qe2
{[%clk 0:03:01.6]} 11... h6 {[%clk 0:02:45.4]} 12. Rfd1 {[%clk 0:03:01.5]} 12...
Qc7 {[%clk 0:02:43.3]} 13. a4 {[%clk 0:02:45.1]} 13... b4 {[%clk 0:02:38.8]} 14.
Nd5 {[%clk 0:02:45.2]} 14... Bxd5 {[%clk 0:02:38.7]} 15. exd5 {[%clk 0:02:46.1]}
15... Nbd7 {[%clk 0:02:37.4]} 16. a5 {[%clk 0:02:46.1]} 16... Nc5 {[%clk
0:02:36.8]} 17. Bc4 {[%clk 0:02:45.7]} 17... Nfe4 {[%clk 0:02:22.4]} 18. Nd2
{[%clk 0:02:40.9]} 18... Nxd2 {[%clk 0:02:21.8]} 19. Bxd2 {[%clk 0:02:41.8]}
19... Rab8 {[%clk 0:02:17.2]} 20. c3 {[%clk 0:02:41.7]} 20... bxc3 {[%clk
0:02:14.1]} 21. Bxc3 {[%clk 0:02:42.6]} 21... f5 {[%clk 0:01:53.6]} 22. Bxe5
{[%clk 0:02:38.5]} 22... Rfe8 {[%clk 0:01:43.9]} 23. Qf3 {[%clk 0:02:07.7]}
23... Ne4 {[%clk 0:01:28.1]} 24. b3 {[%clk 0:02:07.4]} 24... Bg5 {[%clk
0:01:22.8]} 25. Qxf5 {[%clk 0:02:04.7]} 25... Rxe5 {[%clk 0:01:20.5]} 26. Qxe5
{[%clk 0:02:04.7]} 26... dxe5 {[%clk 0:01:18.6]} 27. d6+ {[%clk 0:02:05.2]}
27... Qxc4 {[%clk 0:01:19.2]} 28. bxc4 {[%clk 0:02:06]} 28... Kf7 {[%clk
0:01:09.6]} 29. Rab1 {[%clk 0:01:45.7]} 29... Rxb1 {[%clk 0:00:47.9]} 30. Rxb1
{[%clk 0:01:46.6]} 30... Nxd6 {[%clk 0:00:48]} 31. Rb6 {[%clk 0:01:46.2]} 31...
Nxc4 {[%clk 0:00:47.8]} 32. Rxa6 {[%clk 0:01:46.7]} 32... Bd2 {[%clk 0:00:47.3]}
33. Ra7+ {[%clk 0:01:46]} 33... Ke6 {[%clk 0:00:46.9]} 34. a6 {[%clk 0:01:46.4]}
34... Ba5 {[%clk 0:00:39.2]} 35. Rxg7 {[%clk 0:01:44.8]} 35... Nb6 {[%clk
0:00:32]} 36. a7 {[%clk 0:01:41.1]} 1-0

[Event "*** Titled Tuesday Blitz"]
[Site "Chess.com"]
[Date "2020.11.10"]
[Round "3"]
[White "German_Bazeev"]
[Black "JozefKneht"]
[Result "1-0"]
[WhiteElo "2735"]
[BlackElo "2514"]
[TimeControl "180+1"]
[EndTime "10:29:59 PST"]
[Termination "German_Bazeev won by checkmate"]

1. d4 {[%clk 0:02:57.8]} 1... Nf6 {[%clk 0:03:00.1]} 2. Nf3 {[%clk 0:02:54.9]}
2... e6 {[%clk 0:03:00]} 3. c4 {[%clk 0:02:54.9]} 3... Bb4+ {[%clk 0:02:59.2]}
4. Bd2 {[%clk 0:02:54.6]} 4... Qe7 {[%clk 0:02:56.7]} 5. g3 {[%clk 0:02:54.7]}
5... Nc6 {[%clk 0:02:54.5]} 6. Bg2 {[%clk 0:02:54.7]} 6... Bxd2+ {[%clk
0:02:54.3]} 7. Nbxd2 {[%clk 0:02:55.6]} 7... d6 {[%clk 0:02:51.9]} 8. Nf1 {[%clk
0:02:55.5]} 8... a5 {[%clk 0:02:51.1]} 9. Ne3 {[%clk 0:02:54.7]} 9... O-O {[%clk
0:02:35.1]} 10. O-O {[%clk 0:02:53.6]} 10... e5 {[%clk 0:02:34.8]} 11. Nd5
{[%clk 0:02:50.1]} 11... Nxd5 {[%clk 0:02:32.7]} 12. cxd5 {[%clk 0:02:51]} 12...
Nxd4 {[%clk 0:02:32.4]} 13. Nxd4 {[%clk 0:02:51.4]} 13... exd4 {[%clk
0:02:32.1]} 14. Re1 {[%clk 0:02:48.9]} 14... Bd7 {[%clk 0:01:45.4]} 15. Qxd4
{[%clk 0:02:46.7]} 15... c5 {[%clk 0:01:43.9]} 16. dxc6 {[%clk 0:02:45.5]} 16...
bxc6 {[%clk 0:01:42]} 17. e4 {[%clk 0:02:45.6]} 17... Rab8 {[%clk 0:01:39.5]}
18. b3 {[%clk 0:02:44.9]} 18... Rfd8 {[%clk 0:01:38.3]} 19. Rac1 {[%clk
0:02:26.3]} 19... Be8 {[%clk 0:01:38.7]} 20. e5 {[%clk 0:02:22.8]} 20... d5
{[%clk 0:01:34.1]} 21. Qc5 {[%clk 0:02:20.2]} 21... Qe6 {[%clk 0:01:23.2]} 22.
Qxa5 {[%clk 0:02:18]} 22... d4 {[%clk 0:01:23.3]} 23. Qd2 {[%clk 0:02:07.7]}
23... Rb5 {[%clk 0:01:14.3]} 24. f4 {[%clk 0:02:04.7]} 24... c5 {[%clk
0:01:14.3]} 25. Bf1 {[%clk 0:01:59.8]} 25... Rb7 {[%clk 0:01:01.2]} 26. Bc4
{[%clk 0:01:49.4]} 26... Qg4 {[%clk 0:00:54.7]} 27. e6 {[%clk 0:01:49.4]} 27...
Rc7 {[%clk 0:00:42.7]} 28. Re5 {[%clk 0:01:44.4]} 28... h6 {[%clk 0:00:29.5]}
29. Rce1 {[%clk 0:01:44.2]} 29... Kh7 {[%clk 0:00:16.8]} 30. Qd3+ {[%clk
0:01:41.9]} 30... Kg8 {[%clk 0:00:16]} 31. exf7+ {[%clk 0:01:35.7]} 31... Bxf7
{[%clk 0:00:15.9]} 32. Re8+ {[%clk 0:01:36]} 32... Rxe8 {[%clk 0:00:15.9]} 33.
Rxe8# {[%clk 0:01:36.9]} 1-0

[Event "*** Titled Tuesday Blitz"]
[Site "Chess.com"]
[Date "2020.11.10"]
[Round "3"]
[White "TigrVShlyape"]
[Black "Rital44"]
[Result "1-0"]
[WhiteElo "2855"]
[BlackElo "2460"]
[TimeControl "180+1"]
[EndTime "10:29:59 PST"]
[Termination "TigrVShlyape won by resignation"]

1. d4 {[%clk 0:03:00.9]} 1... Nf6 {[%clk 0:02:58.9]} 2. Nf3 {[%clk 0:02:59.9]}
2... g6 {[%clk 0:02:59.1]} 3. c3 {[%clk 0:02:57.9]} 3... Bg7 {[%clk 0:02:57.6]}
4. Bg5 {[%clk 0:02:56.7]} 4... b6 {[%clk 0:02:57]} 5. Nbd2 {[%clk 0:02:55.7]}
5... Bb7 {[%clk 0:02:56.9]} 6. e3 {[%clk 0:02:54.8]} 6... d6 {[%clk 0:02:56.5]}
7. a4 {[%clk 0:02:53.8]} 7... a6 {[%clk 0:02:54.5]} 8. Bc4 {[%clk 0:02:52.2]}
8... Nbd7 {[%clk 0:02:53.8]} 9. O-O {[%clk 0:02:51.9]} 9... h6 {[%clk
0:02:53.3]} 10. Bh4 {[%clk 0:02:51.6]} 10... g5 {[%clk 0:02:50.3]} 11. Bg3
{[%clk 0:02:51.5]} 11... Nh5 {[%clk 0:02:50.6]} 12. Ne5 {[%clk 0:02:25.5]} 12...
Nxe5 {[%clk 0:02:47.9]} 13. Bxe5 {[%clk 0:02:22]} 13... dxe5 {[%clk 0:02:47.5]}
14. Qxh5 {[%clk 0:02:21.2]} 14... O-O {[%clk 0:02:45.8]} 15. Nf3 {[%clk
0:02:14.4]} 15... e4 {[%clk 0:02:45.2]} 16. Nd2 {[%clk 0:01:47.7]} 16... Bd5
{[%clk 0:02:42.4]} 17. Bxd5 {[%clk 0:01:41.1]} 17... Qxd5 {[%clk 0:02:43.3]} 18.
h4 {[%clk 0:01:36]} 18... e6 {[%clk 0:02:35.8]} 19. hxg5 {[%clk 0:01:34.4]}
19... hxg5 {[%clk 0:02:36]} 20. f3 {[%clk 0:01:34.6]} 20... exf3 {[%clk
0:02:35.3]} 21. e4 {[%clk 0:01:32.5]} 21... Qa5 {[%clk 0:02:31.3]} 22. Nxf3
{[%clk 0:01:31.6]} 22... f6 {[%clk 0:02:30.2]} 23. g4 {[%clk 0:01:26.8]} 23...
c5 {[%clk 0:02:26.3]} 24. Rf2 {[%clk 0:01:24.3]} 24... cxd4 {[%clk 0:02:20.8]}
25. cxd4 {[%clk 0:01:24.3]} 25... Qb4 {[%clk 0:01:51.4]} 26. Raf1 {[%clk
0:01:17.5]} 26... Rac8 {[%clk 0:01:44.2]} 27. Rh2 {[%clk 0:01:15.6]} 27... Rf7
{[%clk 0:01:38.4]} 28. Nxg5 {[%clk 0:01:13.3]} 28... Qxd4+ {[%clk 0:01:35]} 29.
Kh1 {[%clk 0:01:13.3]} 29... Re7 {[%clk 0:01:30.2]} 30. Qh7+ {[%clk 0:01:12.1]}
30... Kf8 {[%clk 0:01:30.4]} 31. Qg6 {[%clk 0:01:09.3]} 31... f5 {[%clk
0:00:53.2]} 32. gxf5 {[%clk 0:01:05.7]} 1-0